Cogmind - Beta 17 @@@ ROGUE MODE // 2026.07.14 @ 05:43:54 Player: kite Result: Self-destructed Performance ------------- Evolutions (4) 2000 Regions Visited (11) 2200 Robots Destroyed (143) 715 Value Destroyed (4970) 4970 Prototype IDs (40) 800 Alien Tech Used (0) 0 Bonus (1855) 1855 TOTAL SCORE: 12540 Bonus ------- High Alert Combat Kills 146 Follower Combat Kills 709 Entered Garrisons 200 Entered DSFs 500 Aligned with FarCom 300 Cogmind --------- Core Integrity 656/850 Matter 172/300 Energy 31/280 System Corruption 2% Temperature Cool (0) Movement Treading (165) Location -6/Factory Parts ------- > --- POWER (1) -------- Cooled Ion Engine > --- PROPULSION (6) --- Light Treads Armored Treads Armored Treads Medium Treads Improved Medium Treads Improved Medium Treads > --- UTILITY (5) ------ Huge Storage Unit Advanced Melee Analysis Suite Hacking Suite System Shield > --- WEAPON (3) ------- Improved Proton Missile Launcher Scythe Spear > --- INVENTORY (25) --- Light Angular Momentum Engine Light Treads Light Treads Medium Treads Improved Medium Treads Improved Medium Treads Improved Medium Treads Huge Storage Unit Advanced Terrain Scanner Microactuators Utility Shielding Improved Light Armor Plating Improved Medium Armor Plating Layered Light Armor Plating Layered Light Armor Plating Layered Light Armor Plating Dynamic Insulation System Drone Bay (2/2) Rocket Launcher Plasma Cutter Spear Spear Stasis Trap (100%) Peak State ------------ > --- POWER ------------ Angular Momentum Engine > --- PROPULSION ------- Armored Treads Armored Treads Improved Medium Treads Improved Medium Treads Improved Medium Treads Improved Medium Treads > --- UTILITY ---------- Huge Storage Unit Advanced Terrain Scanner Advanced Terrain Scan Processor Modified TNC Advanced Melee Analysis Suite > --- WEAPON ----------- Katana Spear Spear > --- INVENTORY -------- Cooled Ion Engine Light Treads Light Treads Light Treads Armored Treads Medium Treads Improved Medium Treads Improved Medium Treads Improved Melee Analysis Suite Microactuators Microactuators Transmission Jammer Utility Shielding Improved Light Armor Plating Improved Medium Armor Plating Hacking Suite System Shield Dynamic Insulation System Drone Bay Improved Proton Missile Launcher Rocket Launcher Plasma Cutter Scythe Spear Stasis Trap [Rating: 70] Favorites ----------- Power Cooled Ion Engine Engine Cooled Ion Engine Propulsion Light Treads Treads Light Treads Leg Carbon-fiber Leg Wheel Armored Huge Wheel Utility Large Storage Unit Device Heat Sink Storage Large Storage Unit Processor Modified TNC Hackware System Shield Protection Light Armor Plating Weapon Spear Energy Gun Improved Medium Laser Ballistic Gun Assault Rifle Launcher Grenade Launcher Slashing Weapon Katana Piercing Weapon Spear Special Melee Weapon Datajack Build | -11 -10 -10 -9 -9 -9 -8 -8 -8 -7 -7 -6 ------- Run | Yrd Mat Min Mat Min Exi Min Mat Gar Fac DSF Fac Slots Evolved 8 | . . . 2 . . . 2 . 2 . 2 Power . | . . . . . . . . . . . . Propulsion 4 | . . . 2 . . . . . 1 . 1 Utility 3 | . . . . . . . 1 . 1 . 1 Weapon 1 | . . . . . . . 1 . . . . Parts Attached 112 | 6 2 10 20 2 3 1 17 15 . 7 29 Power 12 | 1 . 3 3 . . . 3 . . . 2 Engine 12 | 1 . 3 3 . . . 3 . . . 2 Core . | . . . . . . . . . . . . Reactor . | . . . . . . . . . . . . Propulsion 42 | 2 . 3 10 1 . 1 3 10 . 3 9 Treads 39 | 2 . 3 10 1 . 1 3 7 . 3 9 Leg 1 | . . . . . . . . 1 . . . Wheel 2 | . . . . . . . . 2 . . . Hover . | . . . . . . . . . . . . Flight . | . . . . . . . . . . . . Utility 39 | 1 2 1 4 1 2 . 4 4 . 4 16 Device 11 | . . . 2 1 1 . 1 . . 2 4 Storage 5 | 1 1 . . . 1 . . . . . 2 Processor 9 | . . . . . . . 1 2 . . 6 Hackware 3 | . . . . . . . . . . . 3 Protection 11 | . 1 1 2 . . . 2 2 . 2 1 Artifact . | . . . . . . . . . . . . Weapon 19 | 2 . 3 3 . 1 . 7 1 . . 2 Energy Gun 8 | 1 . 2 3 . . . 2 . . . . Energy Cannon . | . . . . . . . . . . . . Ballistic Gun 2 | 1 . . . . . . . 1 . . . Ballistic Cannon . | . . . . . . . . . . . . Launcher 3 | . . 1 . . . . 1 . . . 1 Special Weapon . | . . . . . . . . . . . . Impact Weapon . | . . . . . . . . . . . . Slashing Weapon 2 | . . . . . . . 1 . . . 1 Piercing Weapon 3 | . . . . . . . 3 . . . . Special Melee Weapon 1 | . . . . . 1 . . . . . . Unidentified Prototypes 4 | . . . 3 1 . . . . . . . Parts Lost 30 | . 1 5 4 1 . 1 5 4 . 2 7 Power 6 | . 1 1 2 . . . 1 . . . 1 Propulsion 16 | . . 2 1 1 . 1 3 3 . 2 3 Utility 3 | . . . 1 . . . . . . . 2 Weapon 5 | . . 2 . . . . 1 1 . . 1 Highest Loss Streak 5 | . 1 5 1 1 . 1 2 2 . 2 4 To Critical Strikes 1 | . . . . . . . . . . 1 . Average Backups 14 | . 7 14 14 14 15 14 13 12 12 13 20 Power . | . 1 . . . . . . 1 1 1 . Propulsion 4 | . 4 7 5 3 3 2 2 3 3 3 5 Utility 5 | . 1 2 3 5 5 5 6 3 4 5 10 Weapon 3 | . 1 1 4 4 5 5 2 3 3 3 3 Tool/Special . | . . . . . . . . . . . . Unused Backups 31 | . . 1 10 . . 1 4 1 . 2 12 Power 4 | . . . . . . . 2 . . . 2 Propulsion 9 | . . 1 6 . . . . . . . 2 Utility 12 | . . . 1 . . 1 1 1 . 2 6 Weapon 5 | . . . 3 . . . 1 . . . 1 Tool/Special 1 | . . . . . . . . . . . 1 Average Slot Usage (%) 97 | . 82 98 97 99 100 99 97 96 92 99 99 Engine 8 | . 3 13 10 11 11 11 8 9 7 7 5 Treads 37 | . 27 28 43 44 44 43 34 32 38 37 39 Device 6 | . . . 8 10 11 11 7 . . 6 10 Storage 10 | . 14 14 11 11 11 11 9 9 7 7 7 Processor 5 | . . . . . . . 7 8 7 7 13 Protection 3 | . 8 14 1 . . . 3 9 7 7 . Energy Gun 10 | . 14 15 21 22 15 22 12 . . . . Ballistic Gun 1 | . 14 11 . . . . . . . . . Slashing Weapon 3 | . . . . . . . 4 9 7 7 6 Piercing Weapon 6 | . . . . . . . 9 16 15 13 12 Peak Build Rating 70 | 6 7 9 21 26 21 21 33 39 34 40 70 Average Rating 29 | 4 6 8 16 19 19 20 29 31 34 38 62 On Entrance 20 | . 6 7 9 20 20 21 21 31 34 34 39 Avg Prop Armor Cover (%) 7 | . . . 7 7 . . . . . . . Naked Turns . | . . . . . . . . . . . . Heaviest Build 122 | 13 26 31 35 35 35 35 41 41 41 48 122 Greatest Support 160 | 40 40 40 92 89 89 89 89 86 100 100 160 Greatest Overweight (x) 2 | . . . . . . . . 2 . . . Average Overweight (x) . | . . . . . . . . . . . . Largest Inventory Capacity 25 | 8 15 15 15 15 15 15 15 15 15 15 25 Average Capacity 16 | 7 11 15 15 15 15 15 15 15 15 15 24 Most Carried 25 | 2 12 15 15 15 15 15 15 15 14 15 25 Average Carried 15 | 1 8 14 14 14 15 14 14 14 14 14 21 Final Capacity 25 | 8 15 15 15 15 15 15 15 15 15 15 25 Final Carried 23 | 2 12 14 15 15 15 15 15 15 14 15 23 Class Distribution -------------------- 50% | Mutant 25% | Gladiator 6% | Scavenger-Gladiator 6% | Commander-Gladiator 5% | Skirmisher 3% | Assassin Dominant Class ---------------- Mutant | -10/Materials Mutant | -10/Mines Mutant | -9/Materials Mutant | -9/Mines Mutant | -9/Exiles Mutant | -8/Mines Skirmisher | -8/Materials Commander-Gladiator | -8/Garrison Scavenger-Gladiator | -7/Factory Scavenger-Gladiator | -7/DSF Gladiator | -6/Factory Resources | -11 -10 -10 -9 -9 -9 -8 -8 -8 -7 -7 -6 ----------- Run | Yrd Mat Min Mat Min Exi Min Mat Gar Fac DSF Fac Matter Collected 2234 | 247 320 144 450 50 20 30 300 250 . 115 308 Remotely . | . . . . . . . . . . . . Salvage Created 5837 | . 495 147 1524 262 . 119 1022 728 . 83 1457 Parts 322 | . 23 14 82 19 . 15 49 41 . 7 72 Haulers Intercepted 12 | . . . 6 . . . 4 . . 1 1 Recyclers Shooed 3 | . . . 1 . . . 1 . . . 1 Parts Field Recycled . | . . . . . . . . . . . . Retrieved Matter . | . . . . . . . . . . . . Parts Self-Destructed . | . . . . . . . . . . . . Prevented . | . . . . . . . . . . . . Parts Restored . | . . . . . . . . . . . . Kills | -11 -10 -10 -9 -9 -9 -8 -8 -8 -7 -7 -6 ------- Run | Yrd Mat Min Mat Min Exi Min Mat Gar Fac DSF Fac Combat Hostiles Destroyed 101 | . 10 3 26 6 . 5 18 15 . 1 17 Melee 44 | . . . 1 . . . 12 15 . 1 15 Guns 47 | . 10 . 24 6 . 5 2 . . . . AOE 8 | . . 3 . . . . 4 . . . 1 Classes Destroyed 15 | . 4 3 4 1 . . 1 1 . . 1 Worker 6 | . 1 2 1 . . 1 1 . . . . Builder 5 | . . 1 2 . . . 1 . . . 1 Tunneler 7 | . . 1 . 2 . 2 . . . . 2 Hauler 12 | . . . 6 . . . 4 . . 1 1 Recycler 6 | . . . 2 1 . . 1 . . . 2 Operator 2 | . 1 . . . . . . . . . 1 Watcher 4 | . 1 . 2 . . . 1 . . . . Swarmer 22 | . . . 6 4 . 5 5 1 . 1 . Grunt 51 | . 10 2 12 1 . . 9 7 . . 10 Brawler 3 | . . . . . . . . 1 . . 2 Duelist 1 | . . . . 1 . . . . . . . Sentry 15 | . . . 8 . . . 3 4 . . . Demolisher 1 | . . 1 . . . . . . . . . Hunter 6 | . . . . . . . 1 2 . . 3 Programmer 2 | . . . . . . . . . . . 2 Best Kill Streak 8 | . 2 3 5 5 . 4 5 3 . 1 8 Combat Bots Only 7 | . 2 2 3 4 . 4 4 3 . 1 7 Max Kills in Single Turn 4 | . 1 1 1 2 . 2 4 2 . 1 1 Gunslinging 1 | . . . . 1 . . . . . . . Exploded 4 | . . 1 . . . . 4 . . . 1 Melee 2 | . . . 1 . . . 1 2 . 1 1 Uniques/NPCs Destroyed . | . . . . . . . . . . . . Combat | -11 -10 -10 -9 -9 -9 -8 -8 -8 -7 -7 -6 -------- Run | Yrd Mat Min Mat Min Exi Min Mat Gar Fac DSF Fac Hostile Shots Fired 573 | . 43 17 108 32 . 11 73 104 . 43 142 Missed 139 | . 9 . 25 5 . 4 17 30 . 12 37 Hits 434 | . 34 17 83 27 . 7 56 74 . 31 105 Melee 7 | . . . . 4 . . . . . 2 1 Projectile 427 | . 34 17 83 23 . 7 56 74 . 29 104 AOE 16 | . . 16 . . . . . . . . . Critical Strikes 18 | . 1 . 2 . . . 1 5 . 4 5 Part Disruptions 2 | . . . . . . . . . . . 2 Damage Taken 7237 | . 523 603 1038 346 . 55 866 1085 . 772 1949 Core 933 | . 81 101 125 69 . 8 84 144 . 127 194 Absorbed by Shields . | . . . . . . . . . . . . Redirected to Shielding 36 | . . 21 . . . . 15 . . . . Core Remaining (%) 63 | 100 . 27 . . . 49 . 58 . 81 . Volleys Fired 224 | . 41 26 94 21 . 15 21 1 . . 5 Largest 3 | . 2 2 2 2 . 2 3 1 . . 1 Hottest 168 | . 60 80 115 112 . 112 168 20 . . 43 Shots Fired 450 | . 82 43 188 42 . 30 59 1 . . 5 Gun 437 | . 82 37 188 42 . 30 57 1 . . . Cannon . | . . . . . . . . . . . . Launcher 13 | . . 6 . . . . 2 . . . 5 Special . | . . . . . . . . . . . . Kinetic 59 | . 41 17 . . . . . 1 . . . Thermal 378 | . 41 20 188 42 . 30 57 . . . . Explosive 8 | . . 6 . . . . 2 . . . . Electromagnetic 5 | . . . . . . . . . . . 5 Robot Hit Streak 16 | . 16 5 11 9 . 3 8 . . . 3 Robot Miss Streak 5 | . 4 5 3 3 . 3 3 . . . 2 Penetration Max . | . . . . . . . . . . . . Secondary Targets 3 | . 1 . 1 1 . . . . . . . Max Gunslinging Chain 1 | . 1 . 1 1 . . . . . . . Shots Hit Robots 436 | . 49 23 128 23 3 14 73 42 . 5 76 Core Hits 212 | . 26 14 51 10 . 9 37 20 . 3 42 Critical Kills . | . . . . . . . . . . . . Critical Parts Destroyed . | . . . . . . . . . . . . Critical Strikes 40 | . . . 14 . . . 8 8 . 2 8 Burn 20 | . . . 14 . . . 6 . . . . Sever 7 | . . . . . . . . 4 . 1 2 Impale 13 | . . . . . . . 2 4 . 1 6 Melee Attacks 270 | . . . . . 3 . 59 75 . 6 127 Impact . | . . . . . . . . . . . . Slashing 93 | . . . . . . . 15 32 . 3 43 Piercing 174 | . . . . . . . 44 43 . 3 84 Sneak Attacks 24 | . . . . . 3 . 2 6 . 1 12 Combat Hostiles 4 | . . . . . . . . 4 . . . Follow-up Attacks 36 | . . . . . . . 9 8 . 1 18 Damage Inflicted 10413 | . 626 392 2151 388 . 270 1972 1428 . 179 3007 Guns 4263 | . 619 216 2144 388 . 270 626 . . . . Cannons . | . . . . . . . . . . . . Explosions 797 | . . 176 . . . . 243 . . . 378 Melee 5339 | . . . . . . . 1103 1428 . 179 2629 Ramming 14 | . 7 . 7 . . . . . . . . Kinetic 416 | . 295 121 . . . . . . . . . Thermal 3847 | . 324 95 2144 388 . 270 626 . . . . Explosive 419 | . . 176 . . . . 243 . . . . Electromagnetic 378 | . . . . . . . . . . . 378 Impact . | . . . . . . . . . . . . Slashing 1591 | . . . . . . . 225 503 . 98 765 Piercing 3748 | . . . . . . . 878 925 . 81 1864 Highest Corruption 2 | . . . . . . . . 2 . . 2 Average Corruption 1 | . . . . . . . . 1 . . 1 Corruption Purged 1 | . . . . . . . . . . . 1 Corruption Blocked . | . . . . . . . . . . . . Effects 22 | . . . . . . . . 18 . . 4 Message Errors 6 | . . . . . . . . 5 . . 1 Matter Fused 8 | . . . . . . . . 6 . . 2 Heat Flow Errors 4 | . . . . . . . . 3 . . 1 Energy Discharges 3 | . . . . . . . . 3 . . . Parts Rejected 1 | . . . . . . . . 1 . . . Overload Shots . | . . . . . . . . . . . . Overflow Damage 208 | . . . . . . . 27 35 . . 146 Projectiles . | . . . . . . . . . . . . Explosions . | . . . . . . . . . . . . Melee 208 | . . . . . . . 27 35 . . 146 Knockbacks . | . . . . . . . . . . . . Impact . | . . . . . . . . . . . . Kinetic . | . . . . . . . . . . . . Secondary . | . . . . . . . . . . . . Self-Inflicted Damage 87 | . . 24 . . . . 31 . . . 32 Shots 5 | . . 2 . . . . 1 . . . 2 Rammed 5 | . 3 . 1 . . . 1 . . . . Targets Rammed 6 | . 3 . 2 . . . 1 . . . . Kicked . | . . . . . . . . . . . . Crushed 1 | . . . 1 . . . . . . . . Highest Temperature 357 | . 62 21 357 109 . 36 256 253 . . 156 Average Temperature 58 | . 21 7 69 30 . 9 96 102 . . 87 Received Heat Transfer 2184 | . 285 9 378 72 . . 387 423 . 72 558 Siege Activations . | . . . . . . . . . . . . Martial Activations . | . . . . . . . . . . . . Shielding Activations . | . . . . . . . . . . . . Robots Disrupted . | . . . . . . . . . . . . Combat Hostiles . | . . . . . . . . . . . . Robots Corrupted 1 | . . . . . . . . . . . 1 Combat Hostiles 1 | . . . . . . . . . . . 1 Parts Fried 2 | . . . . . . . . . . . 2 Impact Corruptions . | . . . . . . . . . . . . Robots Melted 1 | . . . 1 . . . . . . . . Combat Hostiles 1 | . . . 1 . . . . . . . . Parts Melted 28 | . . . 19 4 . 2 3 . . . . Heat Transferred 10100 | . 725 236 5883 851 . 592 1813 . . . . Parts Sabotaged . | . . . . . . . . . . . . Parts Stolen . | . . . . . . . . . . . . Parts Stripped . | . . . . . . . . . . . . Power Chain Reactions . | . . . . . . . . . . . . Alert | -11 -10 -10 -9 -9 -9 -8 -8 -8 -7 -7 -6 ------- Run | Yrd Mat Min Mat Min Exi Min Mat Gar Fac DSF Fac Maximum Alert Level 4 | . . . 2 1 . . 1 4 2 2 1 Low Security (%) 70 | 100 100 100 60 93 . 100 94 7 . . 79 Level 1 14 | . . . 36 6 . . 5 23 . . 20 Level 2 7 | . . . 3 . . . . 23 100 100 . Level 3 5 | . . . . . . . . 34 . . . Level 4 1 | . . . . . . . . 11 . . . Level 5 . | . . . . . . . . . . . . High Security . | . . . . . . . . . . . . Max Security . | . . . . . . . . . . . . Sterilizations 1 | . . . . . . . . . . 1 . Peak Influence 1212 | . 98 77 408 232 . 86 213 1212 636 625 327 Initial 636 | . . 6 17 147 . . 24 128 636 431 327 Average 194 | . 29 8 173 64 . 20 52 640 626 523 153 Influence Increases 4352 | . 305 116 880 155 . 200 619 1124 . 314 639 Destroy 0b10 Robot/C 2500 | . 200 60 520 120 . 140 400 520 . 200 340 Destroy 0b10 Robot/NC 220 | . 15 20 65 15 . 15 40 5 . 10 35 Destroy Leader 470 | . 42 10 156 20 . 20 90 20 . 40 72 Allied During Kill 222 | . . . . . . 25 5 131 . 61 . Successful Hack 60 | . 18 . 12 . . . 5 21 . . 4 Select Force Hacks 30 | . 30 . . . . . . . . . . Disable Machine 105 | . . . . . . . . 30 . . 75 Anti-Garrison Action 300 | . . . . . . . . 300 . . . Destroy Structure 175 | . . 26 7 . . . 19 82 . 3 38 Partial Spotted 15 | . . . . . . . . . . . 15 Lose Combat Pursuer 255 | . . . 120 . . . 60 15 . . 60 Influence Decreases 4132 | . 287 89 546 534 . 138 483 110 596 305 1044 Entered New Map 1439 | . . 12 28 232 . . 38 70 576 185 298 Time Decay 2342 | . 277 77 491 292 . 128 401 . 20 . 656 Lost Part 231 | . 10 . 27 10 . 10 44 40 . 20 70 Lost Ally 120 | . . . . . . . . . . 100 20 Squads Dispatched 18 | . 3 . 1 . . . 2 . . 2 10 Investigation 2 | . 1 . . . . . . . . . 1 Extermination 4 | . . . . . . . . . . . 4 Reinforcement 11 | . 2 . 1 . . . 2 . . 2 4 Assault . | . . . . . . . . . . . . Garrison 1 | . . . . . . . . . . . 1 Intercept . | . . . . . . . . . . . . Searches Triggered . | . . . . . . . . . . . . Construction Impeded 2 | . . . . . . . 1 . . . 1 Haulers Reinforced 1 | . . . . . . . . . . . 1 Active Scanning Responses . | . . . . . . . . . . . . Cargo Convoy Interrupts . | . . . . . . . . . . . . Stealth | -11 -10 -10 -9 -9 -9 -8 -8 -8 -7 -7 -6 --------- Run | Yrd Mat Min Mat Min Exi Min Mat Gar Fac DSF Fac Distress Signals 14 | . 1 . 5 . . . 2 . . . 6 Communications Jammed . | . . . . . . . . . . . . Distress Signals . | . . . . . . . . . . . . Times Spotted 174 | . 21 5 39 6 . 8 30 29 . 9 27 Peak Tracking Total 6 | . 3 2 6 4 . 4 5 3 . 3 6 Tactical Retreats 11 | . . . 4 . . . 3 1 . . 3 Traps | -11 -10 -10 -9 -9 -9 -8 -8 -8 -7 -7 -6 ------- Run | Yrd Mat Min Mat Min Exi Min Mat Gar Fac DSF Fac Traps Triggered 5 | . 2 . . . . . 1 1 . 1 . Indirectly . | . . . . . . . . . . . . Trap Hack Attempts . | . . . . . . . . . . . . Triggered . | . . . . . . . . . . . . Disarmed . | . . . . . . . . . . . . Reprogrammed . | . . . . . . . . . . . . Reused . | . . . . . . . . . . . . Traps Extracted . | . . . . . . . . . . . . Installed . | . . . . . . . . . . . . Triggered . | . . . . . . . . . . . . Most Traps Carried 1 | . . . . . . . . . . 1 1 Machines | -11 -10 -10 -9 -9 -9 -8 -8 -8 -7 -7 -6 ---------- Run | Yrd Mat Min Mat Min Exi Min Mat Gar Fac DSF Fac Machines Disabled 12 | . . . . . . . . 7 . . 5 Max in Single Turn 4 | . . . . . . . . 1 . . 4 Garrison Relay 4 | . . . . . . . . 4 . . . Machines Repaired . | . . . . . . . . . . . . Machines Dismantled . | . . . . . . . . . . . . Machines Sabotaged . | . . . . . . . . . . . . Overloaded Fab Kills . | . . . . . . . . . . . . Hacking | -11 -10 -10 -9 -9 -9 -8 -8 -8 -7 -7 -6 --------- Run | Yrd Mat Min Mat Min Exi Min Mat Gar Fac DSF Fac Machines Accessed 26 | . 5 . 5 1 1 1 3 2 1 . 7 Terminals 19 | . 4 . 5 . . 1 2 2 1 . 4 Fabricators 2 | . . . . . . . . . . . 2 Repair Stations . | . . . . . . . . . . . . Recycling Units 1 | . 1 . . . . . . . . . . Scanalyzers . | . . . . . . . . . . . . Garrison Access 2 | . . . . . . . 1 . . . 1 Total Hacks 59 | . 15 . 15 1 1 3 4 3 1 . 16 Successful 30 | . 6 . 6 1 1 1 3 2 1 . 9 Failed 29 | . 9 . 9 . . 2 1 1 . . 7 Catastrophic 6 | . 2 . 1 . . . . . . . 3 Database Lockouts . | . . . . . . . . . . . . Manual 45 | . 15 . 15 . 1 3 3 . . . 8 Terminals 46 | . 12 . 15 . . 3 3 3 1 . 9 Fabricators 4 | . . . . . . . . . . . 4 Repair Stations . | . . . . . . . . . . . . Recycling Units 3 | . 3 . . . . . . . . . . Scanalyzers . | . . . . . . . . . . . . Garrison Access 4 | . . . . . . . 1 . . . 3 Terminal Hacks 14 | . 2 . 2 1 1 1 1 2 1 . 3 Part Schematic 5 | . 2 . 2 . . . . . . . 1 Prototype ID Bank 1 | . . . . . . 1 . . . . . Open Door 2 | . . . . 1 . . . 1 . . . Open DSF 2 | . . . . . . . . . 1 . 1 Emergency Access Points 1 | . . . . . . . . 1 . . . Zone Layout 2 | . . . . . . . 1 . . . 1 Proto ID Catalog 1 | . . . . . 1 . . . . . . Fabricator Hacks 3 | . . . . . . . . . . . 3 Network Status 1 | . . . . . . . . . . . 1 Load Schematic 1 | . . . . . . . . . . . 1 Build 1 | . . . . . . . . . . . 1 Repair Station Hacks . | . . . . . . . . . . . . Recycling Unit Hacks . | . . . . . . . . . . . . Scanalyzer . | . . . . . . . . . . . . Garrison Access Hacks 1 | . . . . . . . 1 . . . . Unlock Access 1 | . . . . . . . 1 . . . . Unauthorized Hacks 12 | . 4 . 4 . . . 1 . . . 3 Terminals 11 | . 3 . 4 . . . 1 . . . 3 Botnet 11 | . 3 . 4 . . . 1 . . . 3 Fabricators . | . . . . . . . . . . . . Repair Stations . | . . . . . . . . . . . . Recycling Units 1 | . 1 . . . . . . . . . . Tunnel 1 | . 1 . . . . . . . . . . Scanalyzers . | . . . . . . . . . . . . Garrison Access . | . . . . . . . . . . . . Data Cores Recovered . | . . . . . . . . . . . . Used . | . . . . . . . . . . . . Hacking Detections 17 | . 4 . 5 . . 1 . 1 . . 6 Full Trace Events 1 | . . . . . . . . . . . 1 Feedback Events 1 | . . . . . . . . . . . 1 Corruption 1 | . . . . . . . . . . . 1 Feedback Blocked . | . . . . . . . . . . . . Robot Schematics Acquired . | . . . . . . . . . . . . Robots Built . | . . . . . . . . . . . . Authchips . | . . . . . . . . . . . . Time . | . . . . . . . . . . . . Total Robot Build Rating . | . . . . . . . . . . . . Part Schematics Acquired 4 | . 2 . 1 . . . . . . . 1 Parts Built 1 | . . . . . . . . . . . 1 Authchips 1 | . . . . . . . . . . . 1 Time 17 | . . . . . . . . . . . 17 Total Part Build Rating 1 | . . . . . . . . . . . 1 Part Studies Acquired . | . . . . . . . . . . . . Parts Repaired . | . . . . . . . . . . . . Time . | . . . . . . . . . . . . Parts Recycled . | . . . . . . . . . . . . Recycled Matter . | . . . . . . . . . . . . Retrieved Matter . | . . . . . . . . . . . . Retrieved Components . | . . . . . . . . . . . . Parts Scanalyzed . | . . . . . . . . . . . . Part Schematics Acquired . | . . . . . . . . . . . . Parts Damaged . | . . . . . . . . . . . . Bothacking | -11 -10 -10 -9 -9 -9 -8 -8 -8 -7 -7 -6 ------------ Run | Yrd Mat Min Mat Min Exi Min Mat Gar Fac DSF Fac Used RIF Installer . | . . . . . . . . . . . . Robots Hacked 3 | . . . . . 3 . . . . . . Non-combat 2 | . . . . . 2 . . . . . . Combat 1 | . . . . . 1 . . . . . . Robot Hacks Applied 3 | . . . . . 3 . . . . . . parse_system 3 | . . . . . 3 . . . . . . Relay Couplers Released 17 | . . . . . . . . 17 . . . Machine Destruction 13 | . . . . . . . . 13 . . . Programmers 4 | . . . . . . . . 4 . . . Fabnet Peak Effective % . | . . . . . . . . . . . . Robots Rewired 5 | . . . . . . . . 5 . . . Allies Hacked . | . . . . . . . . . . . . Hacks Repelled . | . . . . . . . . . . . . Allies | -11 -10 -10 -9 -9 -9 -8 -8 -8 -7 -7 -6 -------- Run | Yrd Mat Min Mat Min Exi Min Mat Gar Fac DSF Fac Total Allies 10 | . . . . 3 . . . 7 . . . Largest Group 7 | . . . . 3 3 3 3 7 7 7 1 Highest-Rated Group 172 | . . . . 40 40 40 40 172 172 172 39 Highest-Rated Ally 39 | . . . . 16 16 16 16 39 39 39 39 Initial Warlord ECA Mod 16 | . . . . . . . . . 7 7 16 Total Orders . | . . . . . . . . . . . . Ally Attacks 139 | . . . . . . 8 18 50 . 59 4 Total Damage 2044 | . . . . . . 55 161 675 . 1073 80 Kills 26 | . . . . . . 2 2 12 . 10 . Allies Corrupted . | . . . . . . . . . . . . Allies Melted . | . . . . . . . . . . . . Intel | -11 -10 -10 -9 -9 -9 -8 -8 -8 -7 -7 -6 ------- Run | Yrd Mat Min Mat Min Exi Min Mat Gar Fac DSF Fac Active Infowar (turns) 3773 | . . . . . . . 1108 . . 226 2439 Terrain 3397 | . . . . . . . 1108 . . 226 2063 T.N.C. 1817 | . . . . . . . . . . . 1817 Jamming 388 | . . . . . . . . . . . 388 Robot Analysis Total . | . . . . . . . . . . . . Derelict Logs Recovered 2 | . . . . 2 . . . . . . . Drone Launches . | . . . . . . . . . . . . Drone Recoveries . | . . . . . . . . . . . . Exploration | -11 -10 -10 -9 -9 -9 -8 -8 -8 -7 -7 -6 ------------- Run | Yrd Mat Min Mat Min Exi Min Mat Gar Fac DSF Fac Turns Passed 11735 | 115 944 730 1671 1073 582 613 1460 1739 57 310 2441 Spaces Moved 5915 | 68 494 358 756 617 354 346 657 858 34 165 1208 Core 3 | 3 . . . . . . . . . . . Treads 5810 | 65 494 358 756 617 354 346 657 756 34 165 1208 Legs 7 | . . . . . . . . 7 . . . Wheels 95 | . . . . . . . . 95 . . . Hover . | . . . . . . . . . . . . Flight . | . . . . . . . . . . . . Fastest Speed 50 | 50 160 160 160 160 160 160 160 100 162 162 162 Average Speed 160 | 155 160 160 160 160 160 160 160 156 162 162 162 Slowest Speed 260 | 160 160 160 160 160 160 160 162 260 162 163 163 Overloaded Moves . | . . . . . . . . . . . . Propulsion Burnouts . | . . . . . . . . . . . . Robots Hopped . | . . . . . . . . . . . . Potential Cave-ins . | . . . . . . . . . . . . Cave-ins Triggered . | . . . . . . . . . . . . Exploration Rate (%) 60 | 4 79 63 69 99 61 76 58 79 2 93 43 Regions Visited 11 Branch Regions 4 Pre-discovered Areas 3 | . 1 . . 2 . . . . . . . Known Exits Taken 2 | . . . . . . . 1 . 1 . . Unknown Exits Taken 7 | 1 1 1 1 1 1 1 . . . . . Scrap Searched 2 | . . . . 2 . . . . . . . Spaces Dug 47 | . . . . . . . 9 1 . 1 36 Terrain Destroyed 99 | . . 44 . . . . 17 1 . 1 36 Melee 47 | . . . . . . . 9 1 . 1 36 Projectile . | . . . . . . . . . . . . AOE 52 | . . 44 . . . . 8 . . . . Terrain Rammed . | . . . . . . . . . . . . Walls Destroyed . | . . . . . . . . . . . . Machines Disabled . | . . . . . . . . . . . . Actions | -11 -10 -10 -9 -9 -9 -8 -8 -8 -7 -7 -6 --------- Run | Yrd Mat Min Mat Min Exi Min Mat Gar Fac DSF Fac Total 7431 | 75 562 471 1046 662 368 376 945 1163 36 202 1525 Wait 662 | . 9 70 122 17 5 12 164 129 2 3 129 Move 5905 | 67 493 357 755 616 353 345 657 857 33 164 1208 Hop . | . . . . . . . . . . . . Pick Up 98 | 2 10 4 20 2 1 2 12 12 . 12 21 Fast Attach 44 | 6 4 3 8 2 . . 9 5 . 2 5 Attach 40 | . . 5 4 1 . 1 6 6 1 4 12 Detach 2 | . . 1 . . . . 1 . . . . Swap 73 | . 1 3 11 . 4 . 15 10 . 4 25 Drop 96 | . 1 2 30 3 2 1 15 19 . 8 15 Fire 224 | . 41 26 94 21 . 15 21 1 . . 5 Melee 220 | . . . . . 3 . 44 63 . 5 105 Ram . | . . . . . . . . . . . . Kick . | . . . . . . . . . . . . Crush 6 | . 3 . 2 . . . 1 . . . . Escape Stasis 4 | . . . . . . . . 4 . . . Rewire 57 | . . . . . . . . 57 . . . Trap . | . . . . . . . . . . . . Miscellaneous . | . . . . . . . . . . . . Route ------- -11/Scrapyard -10/Materials (discovered 3 exits: *Mat x2 / [*Min]) -10/Mines -9/Materials (discovered 4 exits: *Mat x2 / *Min / [*Sto]) -9/Mines (discovered 3 exits: *Mat x2 / *Exi) -9/Exiles -8/Mines -8/Materials (discovered 3 exits: *Fac x2 / Gar) -8/Garrison (discovered 3 exits: *Fac x3) -7/Factory -7/DSF -6/Factory (discovered 2 exits: [*Fac] / *Low) History --------- Turn | Location | Event 33 | -11/Scrapyard | Discovered new exit (range 15) 116 | -11/Scrapyard | Entered Materials 307 | -10/Materials | Build established: Mutant 429 | -10/Materials | Discovered new exit (range 5) 591 | -10/Materials | Discovered new exit (range 13) 951 | -10/Materials | Discovered new exit (range 12) 1060 | -10/Materials | Entered Mines 1069 | -10/Mines | Assembled infested the area 1074 | -10/Mines | Assisted by a Guerilla fighting off Assembled 1076 | -10/Mines | Joined a pair of Derelicts in attacking an 0b10 outpost 1649 | -10/Mines | Core integrity fell below 50% 1675 | -10/Mines | Lost 5 parts (1p2n2w) 1784 | -10/Mines | Discovered new exit (range 4) 1790 | -10/Mines | Entered Materials 1790 | -9/Materials | Evolved 2 slots: Propulsion x2 2025 | -9/Materials | Discovered new exit (range 15) 2253 | -9/Materials | Discovered new exit (range 16) 2572 | -9/Materials | Discovered new exit (range 8) 2933 | -9/Materials | Discovered new exit (range 5) 3461 | -9/Materials | Entered Mines 3572 | -9/Mines | Learned 2 Materials zone layouts 3690 | -9/Mines | Found the Drone Emporium 3698 | -9/Mines | Found Prototype Device 3698 | -9/Mines | Identified Thief Drone Bay 3982 | -9/Mines | Received a Rocket Launcher from a helpful Derelict 4130 | -9/Mines | Discovered new exit (range 7) 4189 | -9/Mines | Assisted by bots powering up and referring to "LRC-V3" 4239 | -9/Mines | Discovered new exit (range 8) 4240 | -9/Mines | Learned location of Storage (-9) 4519 | -9/Mines | Deemed a non-threat by the Exiles lab entrance 4519 | -9/Mines | Discovered new exit (range 5) 4534 | -9/Mines | Entered Exiles 4534 | -9/Exiles | Accompanied by 3 allies 4573 | -9/Exiles | Met 8R-AWN 4602 | -9/Exiles | Met EX-HEX 4650 | -9/Exiles | Met EX-BIN 4669 | -9/Exiles | Aligned with FarCom system 4670 | -9/Exiles | Given EX-Vault access code 4707 | -9/Exiles | Opened EX-Vault 4720 | -9/Exiles | Found Modified TNC 4757 | -9/Exiles | Warned to stay clear of 0b10 Research branches 4921 | -9/Exiles | Met EX-DEC 5098 | -9/Exiles | Discovered new exit (range 10) 5116 | -9/Exiles | Left Exiles lab with Modified TNC 5116 | -9/Exiles | Entered Mines 5116 | -8/Mines | Accompanied by 3 allies 5651 | -8/Mines | Core integrity fell below 50% 5689 | -8/Mines | Discovered new exit (range 8) 5729 | -8/Mines | Entered Materials 5729 | -8/Materials | Accompanied by 3 allies 5729 | -8/Materials | Evolved 2 slots: Utility x1, Weapon x1 5730 | -8/Materials | Identified exit to Factory 6005 | -8/Materials | Build established: Skirmisher 6669 | -8/Materials | Discovered exit to Factory (range 5) 6708 | -8/Materials | Build established: Assassin 7189 | -8/Materials | Identified exit to Garrison 7189 | -8/Materials | Entered Garrison 7339 | -8/Garrison | Triggered checkpoint 7369 | -8/Garrison | Garrison Relay disabled 7409 | -8/Garrison | Triggered checkpoint 7499 | -8/Garrison | Build established: Gladiator 7693 | -8/Garrison | Triggered checkpoint 7753 | -8/Garrison | Triggered checkpoint 7865 | -8/Garrison | Discovered exit to Factory (range 11) 7891 | -8/Garrison | Triggered checkpoint 7920 | -8/Garrison | Rescued a captive Derelict 7921 | -8/Garrison | Rescued a captive Derelict 7979 | -8/Garrison | Garrison Relay disabled 8055 | -8/Garrison | Triggered checkpoint 8125 | -8/Garrison | Triggered checkpoint 8245 | -8/Garrison | Discovered exit to Factory (range 13) 8485 | -8/Garrison | Build established: Commander-Gladiator 8581 | -8/Garrison | Discovered exit to Factory (range 14) 8647 | -8/Garrison | Triggered checkpoint 8679 | -8/Garrison | Triggered checkpoint 8734 | -8/Garrison | Garrison Relay disabled 8864 | -8/Garrison | Garrison Relay disabled 8928 | -8/Garrison | Entered Factory 8928 | -7/Factory | Accompanied by 7 allies 8928 | -7/Factory | Evolved 2 slots: Propulsion x1, Utility x1 8981 | -7/Factory | Identified exit to DSF 8985 | -7/Factory | Entered DSF 8985 | -7/DSF | Accompanied by 7 allies 9034 | -7/DSF | Additional patrols routed to DSF 9096 | -7/DSF | Lost 3 allies 9220 | -7/DSF | Discovered new exit (range 15) 9252 | -7/DSF | Sterilization system engaged 9260 | -7/DSF | Lost 3 allies 9272 | -7/DSF | Ambient heat levels rising (+10) 9274 | -7/DSF | Build established: Scavenger-Gladiator 9287 | -7/DSF | Ambient heat levels rising (+10) 9295 | -7/DSF | Entered Factory 9295 | -6/Factory | Accompanied by 1 ally 9295 | -6/Factory | Evolved 2 slots: Propulsion x1, Utility x1 9328 | -6/Factory | Fabricated Huge Storage Unit (x1) 9686 | -6/Factory | Build established: Gladiator 9872 | -6/Factory | Discovered new exit (range 10) 9889 | -6/Factory | Identified exit to Lower Caves 10241 | -6/Factory | Discovered new exit (range 16) 10423 | -6/Factory | Destroyed 7 combat bots 10563 | -6/Factory | Lost 4 parts (3n1w) 11725 | -6/Factory | Garrison activated, responded to threat 11736 | -6/Factory | Self-destructed Last Messages --------------- 11714_ U-05 Engineer builds a Wall. 11720_ C-30 ARC bursts open, deploying its payload. 11720_ B-48 Gladiator unfolds itself. 11720_ G-50 Soldier unfolds itself. 11725_ Door malfunctions. 11725_ ALERT: Activating Garrison Access F001. 11725_ ALERT: Construction progress impeded, dispatching reinforcements to local area. 11726_ G-50 Soldier IFF system glitched. 11727_ Neutrino Reactor explodes. 11727_ B-48 Gladiator destroyed. 11727_ Door malfunctions. 11727_ Neutrino Reactor explodes. 11729_ G-50 Soldier misfires. 11730_ G-50 Soldier destroyed. 11734_ Modified TNC destroyed. 11735_ G-50 Soldier system terminally corrupted. 11735_ Adv. Heat Sink fried. 11735_ Lgt. Angular Momentum Engine fried. Map ----- +----------------------------------------------------+ | ???????????????#?????? ?## """ """ # | | ??????????????????#?????## """ """ # | | ???????????? ??#??##??##?# ! ^ # ! | | ???????????############T## """ ]]] # | | ???????????? """ ]] # | | ??????????? """ ]] ##### | | ??????????? ##### | | ??????????? ! ###?? | | ????????????????"""" " " #???# | | ?????????????????""" " " #######" "#####?### | | ??????????"?????"" ""G""g #?????#"Y"#?#??#?## | | ?????????????? #???###"""###??#### | | ??????? ????? #?#?#######?#?#?##? | | ????????????? ### ####?##?#??##?####? | | ??????????????????# h #?#?###??##?#?#??#? | | ?????????????????## % #????????????###??? | | ?????????????????## ####R##########?#??##????? | | ??????????????????# # [= ###??#?#??### | | ??????????????????# # %[%= ##?##?#?#?##? | | ??????????????????# # =%/! #??#???#?#??? | | ??????????????##?## ?# #?#?#???????# | | ???????????????????? ? ?/ ###??###??### | | ????????????????????h ??# #??##???????? | | ????????????????????????# #??##??#??#?# | | ????????????????????????# #????#?###??? | | ??????????????????????? #@ #???????????? | | ????????????????????????# #?#?????????? | | ???????????????????w????# #???????????? | | ????????????????????????# #???????????? | | ????????????????????????##############???????????? | | ?????????????????????????????????????????????????? | | ?????????????????????????????????????????????????? | | ??????????????????g??????????????????????????????? | | ?????????????????????????????????????????????????? | | ?????????????????????????????????????????????????? | | ?????????????????????????????????????????????????? | | ?????????????????????????????????????????????????? | | ?????????????????????????????????????????????????? | | ?????????????????????????????????????????????????? | | ?????????????????????????????????????????????????? | | ?????????????????????????????????????????????????? | | ?????????????????????????????????????????????????? | | ?????????????????????????????????????????????????? | | ?????????????????????????????????????????????????? | | ?????????????????????????????????????????????????? | | ?????????????????????????????????????????????????? | | ?????????????????????????????????????????????????? | | ?????????????????????????????????????????????????? | | ?????????????????????????????????????????????????? | | ?????????????????????????????????????????????????? | +----------------------------------------------------+ Best States ------------- Heat Dissipation 41 Energy Generation 18 Energy Capacity 300 Matter Stores 300 Matter Capacity 300 Sight Range 16 Terrain Scan Range 20 Terrain Scan Density 210 Jamming Range 12 EM Shielding 2 Armor Coverage 450 Core Shielding 20 Weapon Shielding 66 Melee Speed Boost 20 Evasion (%) 40 Melee Accuracy 14 Recoil Reduction 6 Offensive Hacking 10 Defensive Hacking 10 Authchip Count 1 Item Schematics ----------------- Huge Storage Unit | -10/Materials | Hacked Hcp. Storage Unit | -10/Materials | Hacked Plasma Cutter | -9/Materials | Hacked Nuclear Pulse Array | -6/Factory | Hacked Robot Schematics ------------------ None Fabricated ------------ Huge Storage Unit | x1 | -6/Factory | Authchip Repaired ---------- Nothing Studied --------- None Alien Tech Used ----------------- None Achievements -------------- None Challenges ------------ None Game ------ Seed ThunderPlexusDerivative Manual? 0 Play Time 00:58:40 Cumulative 450.0 hours Start 2026.07.14 @ 04:42:14 End 2026.07.14 @ 05:43:54 Sessions 1 Manual Loads 0 Difficulty Rogue Special Mode None Game No. 410 Rogue 410 Adventurer 0 Explorer 0 Win Type - Total 11 Types 7/0/2/1/0/0/0/0/0/1 Lore% 61 Gallery% 69 Achievement% 65 Wizard Run 0 Options --------- Layout 1 ASCII 0 Keyboard 0 Movement Mouse Keybinds 0 Fullscreen 2 Font 24/Cog Map View 50x35 Zoom Use 19% Tactical HUD 1 Map Filters NONE Filters NONE Steam 1 RUN: a67ee9b4-c157-4d5b-9b29-e2d40054f916